Workbook

Sheet Instructions
A1: Instructions and Comments
A3: The pages/tabs are bolded. Please make sure you are on the correct page before proceeding with each step.
A5: Before starting
A6: 1. Seed Teams according to qualifying team score or season average.
A7: 2. Seed Players within team standing according to score shot at regional tournament.
A8: 3. Seed individuals by score shot at regional tournaments
A9: 4. For individuals, two or more students from the same school should not play together. You may need to manually adjust this.
A11: Team Listing Worksheet
A12: 1. “Team Seed #1” – enter school name in the appropriate seed lines
A13: 2. “Player #1” – enter player’s name, grade, and qualifying score or average.
A16: Tee Sheet
A17: 1. “Tee Sheet” will automatically populate according to the information entered on the “Team Listing Worksheet.” Check pairings to make sure you don’t have two or more players from the same school in the same tee time. Manually adjust names on tee sheet only if there is a conflict.
A18: 2. Use the tee times created to in the workbook to populate the pairings/tee times in iWanamaker.

Sheet Team Listings
A1: School | B1: Player # | C1: Player Name | D1: Class | E1: Qual Score
A3: Winner, Regional #1 | B3: 1 | C3: Player 1
A4: Winner, Regional #1 | B4: 2 | C4: Player 2
A5: Winner, Regional #1 | B5: 3 | C5: Player 3
A6: Winner, Regional #1 | B6: 4 | C6: Player 4
A7: Winner, Regional #1 | B7: 5 | C7: Player 5
A8: Winner, Regional #1 | B8: 6 | C8: Player 6
A9: Winner, Regional #2 | B9: 1 | C9: Player 1
A10: Winner, Regional #2 | B10: 2 | C10: Player 2
A11: Winner, Regional #2 | B11: 3 | C11: Player 3
A12: Winner, Regional #2 | B12: 4 | C12: Player 4
A13: Winner, Regional #2 | B13: 5 | C13: Player 5
A14: Winner, Regional #2 | B14: 6 | C14: Player 6
A15: Winner, Regional #3 | B15: 1 | C15: Player 1
A16: Winner, Regional #3 | B16: 2 | C16: Player 2
A17: Winner, Regional #3 | B17: 3 | C17: Player 3
A18: Winner, Regional #3 | B18: 4 | C18: Player 4
A19: Winner, Regional #3 | B19: 5 | C19: Player 5
A20: Winner, Regional #3 | B20: 6 | C20: Player 6
A21: Winner, Regional #4 | B21: 1 | C21: Player 1
A22: Winner, Regional #4 | B22: 2 | C22: Player 2
A23: Winner, Regional #4 | B23: 3 | C23: Player 3
A24: Winner, Regional #4 | B24: 4 | C24: Player 4
A25: Winner, Regional #4 | B25: 5 | C25: Player 5
A26: Winner, Regional #4 | B26: 6 | C26: Player 6
A27: Runner-up, Regional #1 | B27: 1 | C27: Player 1
A28: Runner-up, Regional #1 | B28: 2 | C28: Player 2
A29: Runner-up, Regional #1 | B29: 3 | C29: Player 3
A30: Runner-up, Regional #1 | B30: 4 | C30: Player 4
A31: Runner-up, Regional #1 | B31: 5 | C31: Player 5
A32: Runner-up, Regional #1 | B32: 6 | C32: Player 6
A33: Runner-up, Regional #2 | B33: 1 | C33: Player 1
A34: Runner-up, Regional #2 | B34: 2 | C34: Player 2
A35: Runner-up, Regional #2 | B35: 3 | C35: Player 3
A36: Runner-up, Regional #2 | B36: 4 | C36: Player 4
A37: Runner-up, Regional #2 | B37: 5 | C37: Player 5
A38: Runner-up, Regional #2 | B38: 6 | C38: Player 6
A39: Runner-up, Regional #3 | B39: 1 | C39: Player 1
A40: Runner-up, Regional #3 | B40: 2 | C40: Player 2
A41: Runner-up, Regional #3 | B41: 3 | C41: Player 3
A42: Runner-up, Regional #3 | B42: 4 | C42: Player 4
A43: Runner-up, Regional #3 | B43: 5 | C43: Player 5
A44: Runner-up, Regional #3 | B44: 6 | C44: Player 6
A45: Runner-up, Regional #4 | B45: 1 | C45: Player 1
A46: Runner-up, Regional #4 | B46: 2 | C46: Player 2
A47: Runner-up, Regional #4 | B47: 3 | C47: Player 3
A48: Runner-up, Regional #4 | B48: 4 | C48: Player 4
A49: Runner-up, Regional #4 | B49: 5 | C49: Player 5
A50: Runner-up, Regional #4 | B50: 6 | C50: Player 6
A51: Third Place, Regional #1 | B51: 1 | C51: Player 1
A52: Third Place, Regional #1 | B52: 2 | C52: Player 2
A53: Third Place, Regional #1 | B53: 3 | C53: Player 3
A54: Third Place, Regional #1 | B54: 4 | C54: Player 4
A55: Third Place, Regional #1 | B55: 5 | C55: Player 5
A56: Third Place, Regional #1 | B56: 6 | C56: Player 6
A57: Third Place, Regional #2 | B57: 1 | C57: Player 1
A58: Third Place, Regional #2 | B58: 2 | C58: Player 2
A59: Third Place, Regional #2 | B59: 3 | C59: Player 3
A60: Third Place, Regional #2 | B60: 4 | C60: Player 4
A61: Third Place, Regional #2 | B61: 5 | C61: Player 5
A62: Third Place, Regional #2 | B62: 6 | C62: Player 6
A63: Third Place, Regional #3 | B63: 1 | C63: Player 1
A64: Third Place, Regional #3 | B64: 2 | C64: Player 2
A65: Third Place, Regional #3 | B65: 3 | C65: Player 3
A66: Third Place, Regional #3 | B66: 4 | C66: Player 4
A67: Third Place, Regional #3 | B67: 5 | C67: Player 5
A68: Third Place, Regional #3 | B68: 6 | C68: Player 6
A69: Third Place, Regional #4 | B69: 1 | C69: Player 1
A70: Third Place, Regional #4 | B70: 2 | C70: Player 2
A71: Third Place, Regional #4 | B71: 3 | C71: Player 3
A72: Third Place, Regional #4 | B72: 4 | C72: Player 4
A73: Third Place, Regional #4 | B73: 5 | C73: Player 5
A74: Third Place, Regional #4 | B74: 6 | C74: Player 6
A75: Individual School #1 | B75: 1 | C75: Individual #1 | G75: NOTE: After you've entered the last individual competitor,
A76: Individual School #2 | B76: 2 | C76: Individual #2 | G76: type "no player" in all remaining individual cells beneath that.
A77: Individual School #3 | B77: 3 | C77: Individual #3 | G77: This will help populate your "Tee Sheet". When reviewing the
A78: Individual School #4 | B78: 4 | C78: Individual #4 | G78: "Tee Sheet", you can adjust times as needed.
A79: Individual School #5 | B79: 5 | C79: Individual #5
A80: Individual School #6 | B80: 6 | C80: Individual #6
A81: Individual School #7 | B81: 7 | C81: Individual #7
A82: Individual School #8 | B82: 8 | C82: Individual #8
A83: Individual School #9 | B83: 9 | C83: Individual #9
A84: Individual School #10 | B84: 10 | C84: Individual #10
A85: Individual School #11 | B85: 11 | C85: Individual #11
A86: Individual School #12 | B86: 12 | C86: Individual #12
A87: Individual School #13 | B87: 13 | C87: Individual #13
A88: Individual School #14 | B88: 14 | C88: Individual #14
A89: Individual School #15 | B89: 15 | C89: Individual #15
A90: Individual School #16 | B90: 16 | C90: Individual #16
A91: Individual School #17 | B91: 17 | C91: Individual #17
A92: Individual School #18 | B92: 18 | C92: Individual #18
A93: Individual School #19 | B93: 19 | C93: Individual #19
A94: Individual School #20 | B94: 20 | C94: Individual #20
A95: Individual School #21 | B95: 21 | C95: Individual #21
A96: Individual School #22 | B96: 22 | C96: Individual #22
A97: Individual School #23 | B97: 23 | C97: Individual #23
A98: Individual School #24 | B98: 24 | C98: Individual #24
A99: Individual School #25 | B99: 25 | C99: Individual #25
A100: Individual School #26 | B100: 26 | C100: Individual #26
A101: Individual School #27 | B101: 27 | C101: Individual #27
A102: Individual School #28 | B102: 28 | C102: Individual #28
A103: Individual School #29 | B103: 29 | C103: Individual #29
A104: Individual School #30 | B104: 30 | C104: Individual #30
A105: Individual School #31 | B105: 31 | C105: Individual #31
A106: Individual School #32 | B106: 32 | C106: Individual #32
A107: Individual School #33 | B107: 33 | C107: Individual #33
A108: Individual School #34 | B108: 34 | C108: Individual #34
A109: Individual School #35 | B109: 35 | C109: Individual #35
A110: Individual School #36 | B110: 36 | C110: Individual #36
A111: Individual School #37 | B111: 37 | C111: Individual #37
A112: Individual School #38 | B112: 38 | C112: Individual #38
A113: Individual School #39 | B113: 39 | C113: Individual #39
A114: Individual School #40 | B114: 40 | C114: Individual #40

Sheet Tee Sheet
D1: ='Team Listings'!A27 -> Runner-up, Regional #1 | F1: ='Team Listings'!A33 -> Runner-up, Regional #2 | H1: ='Team Listings'!A39 -> Runner-up, Regional #3 | J1: ='Team Listings'!A45 -> Runner-up, Regional #4
A2: Front | B2: 0.375 | D2: ='Team Listings'!C32 -> Player 6 | F2: ='Team Listings'!C38 -> Player 6 | H2: ='Team Listings'!C44 -> Player 6 | J2: ='Team Listings'!C50 -> Player 6
A3: Front | B3: =B2+$B$61 -> 0.38125 | D3: ='Team Listings'!C31 -> Player 5 | F3: ='Team Listings'!C37 -> Player 5 | H3: ='Team Listings'!C43 -> Player 5 | J3: ='Team Listings'!C49 -> Player 5
A4: Front | B4: =B3+$B$61 -> 0.3875 | D4: ='Team Listings'!C30 -> Player 4 | F4: ='Team Listings'!C36 -> Player 4 | H4: ='Team Listings'!C42 -> Player 4 | J4: ='Team Listings'!C48 -> Player 4
A5: Front | B5: =B4+$B$61 -> 0.39375 | D5: ='Team Listings'!C29 -> Player 3 | F5: ='Team Listings'!C35 -> Player 3 | H5: ='Team Listings'!C41 -> Player 3 | J5: ='Team Listings'!C47 -> Player 3
A6: Front | B6: =B5+$B$61 -> 0.4 | D6: ='Team Listings'!C28 -> Player 2 | F6: ='Team Listings'!C34 -> Player 2 | H6: ='Team Listings'!C40 -> Player 2 | J6: ='Team Listings'!C46 -> Player 2
A7: Front | B7: =B6+$B$61 -> 0.40625 | D7: ='Team Listings'!C27 -> Player 1 | F7: ='Team Listings'!C33 -> Player 1 | H7: ='Team Listings'!C39 -> Player 1 | J7: ='Team Listings'!C45 -> Player 1
D9: ='Team Listings'!A3 -> Winner, Regional #1 | F9: ='Team Listings'!A9 -> Winner, Regional #2 | H9: ='Team Listings'!A15 -> Winner, Regional #3 | J9: Winner, Regional #4
A10: Front | B10: =B7+$B$61 -> 0.4125 | D10: ='Team Listings'!C8 -> Player 6 | F10: ='Team Listings'!C14 -> Player 6 | H10: ='Team Listings'!C20 -> Player 6 | J10: ='Team Listings'!C26 -> Player 6
A11: Front | B11: =B10+$B$61 -> 0.41875 | D11: ='Team Listings'!C7 -> Player 5 | F11: ='Team Listings'!C13 -> Player 5 | H11: ='Team Listings'!C19 -> Player 5 | J11: ='Team Listings'!C25 -> Player 5
A12: Front | B12: =B11+$B$61 -> 0.425 | D12: ='Team Listings'!C6 -> Player 4 | F12: ='Team Listings'!C12 -> Player 4 | H12: ='Team Listings'!C18 -> Player 4 | J12: ='Team Listings'!C24 -> Player 4
A13: Front | B13: =B12+$B$61 -> 0.43125 | D13: ='Team Listings'!C5 -> Player 3 | F13: ='Team Listings'!C11 -> Player 3 | H13: ='Team Listings'!C17 -> Player 3 | J13: ='Team Listings'!C23 -> Player 3
A14: Front | B14: =B13+$B$61 -> 0.4375 | D14: ='Team Listings'!C4 -> Player 2 | F14: ='Team Listings'!C10 -> Player 2 | H14: ='Team Listings'!C16 -> Player 2 | J14: ='Team Listings'!C22 -> Player 2
A15: Front | B15: =B14+$B$61 -> 0.44375 | D15: ='Team Listings'!C3 -> Player 1 | F15: ='Team Listings'!C9 -> Player 1 | H15: ='Team Listings'!C15 -> Player 1 | J15: ='Team Listings'!C21 -> Player 1
D17: Individuals | F17: Individuals | H17: Individuals
A18: Front | B18: 0.45 | D18: ='Team Listings'!C91 -> Individual #17 | F18: ='Team Listings'!C92 -> Individual #18 | H18: ='Team Listings'!C93 -> Individual #19
A19: Front | B19: 0.45625 | D19: ='Team Listings'!C88 -> Individual #14 | F19: ='Team Listings'!C89 -> Individual #15 | H19: ='Team Listings'!C90 -> Individual #16
A20: Front | B20: 0.4625 | D20: ='Team Listings'!$C$85 -> Individual #11 | F20: ='Team Listings'!$C$86 -> Individual #12 | H20: ='Team Listings'!C87 -> Individual #13
A21: Front | B21: 0.46875 | D21: ='Team Listings'!$C$82 -> Individual #8 | F21: ='Team Listings'!$C$83 -> Individual #9 | H21: ='Team Listings'!$C$84 -> Individual #10
A22: Front | B22: 0.475 | D22: ='Team Listings'!$C$79 -> Individual #5 | F22: ='Team Listings'!$C$80 -> Individual #6 | H22: ='Team Listings'!$C$81 -> Individual #7
A23: Front | B23: =B22+$B$61 -> 0.48125 | D23: ='Team Listings'!$C$75 -> Individual #1 | F23: ='Team Listings'!$C$76 -> Individual #2 | H23: ='Team Listings'!$C$77 -> Individual #3 | J23: ='Team Listings'!$C$78 -> Individual #4
D25: ='Team Listings'!A51 -> Third Place, Regional #1 | F25: ='Team Listings'!A57 -> Third Place, Regional #2 | H25: ='Team Listings'!$A$63 -> Third Place, Regional #3 | J25: ='Team Listings'!$A$69 -> Third Place, Regional #4
A26: Back | B26: 0.375 | D26: ='Team Listings'!C56 -> Player 6 | F26: ='Team Listings'!C62 -> Player 6 | H26: ='Team Listings'!$C$68 -> Player 6 | J26: ='Team Listings'!$C$74 -> Player 6
A27: Back | B27: 0.38125 | D27: ='Team Listings'!C55 -> Player 5 | F27: ='Team Listings'!C61 -> Player 5 | H27: ='Team Listings'!$C$67 -> Player 5 | J27: ='Team Listings'!$C$73 -> Player 5
A28: Back | B28: 0.3875 | D28: ='Team Listings'!C54 -> Player 4 | F28: ='Team Listings'!C60 -> Player 4 | H28: ='Team Listings'!$C$66 -> Player 4 | J28: ='Team Listings'!$C$72 -> Player 4
A29: Back | B29: 0.39375 | D29: ='Team Listings'!C53 -> Player 3 | F29: ='Team Listings'!C59 -> Player 3 | H29: ='Team Listings'!$C$65 -> Player 3 | J29: ='Team Listings'!$C$71 -> Player 3
A30: Back | B30: 0.4 | D30: ='Team Listings'!C52 -> Player 2 | F30: ='Team Listings'!C58 -> Player 2 | H30: ='Team Listings'!$C$64 -> Player 2 | J30: ='Team Listings'!$C$70 -> Player 2
A31: Back | B31: 0.40625 | D31: ='Team Listings'!C51 -> Player 1 | F31: ='Team Listings'!C57 -> Player 1 | H31: ='Team Listings'!$C$63 -> Player 1 | J31: ='Team Listings'!$C$69 -> Player 1
D34: Individuals | F34: Individuals | H34: Individuals
A35: Back | B35: 0.4125 | D35: ='Team Listings'!$C$112 -> Individual #38 | F35: ='Team Listings'!$C$113 -> Individual #39 | H35: ='Team Listings'!$C$114 -> Individual #40
A36: Back | B36: =B35+$B$61 -> 0.41875 | D36: ='Team Listings'!C109 -> Individual #35 | F36: ='Team Listings'!C110 -> Individual #36 | H36: ='Team Listings'!$C$111 -> Individual #37
A37: Back | B37: =B36+$B$61 -> 0.425 | D37: ='Team Listings'!C106 -> Individual #32 | F37: ='Team Listings'!C107 -> Individual #33 | H37: ='Team Listings'!C108 -> Individual #34
A38: Back | B38: =B37+$B$61 -> 0.43125 | D38: ='Team Listings'!C103 -> Individual #29 | F38: ='Team Listings'!C104 -> Individual #30 | H38: ='Team Listings'!C105 -> Individual #31
A39: Back | B39: =B38+$B$61 -> 0.4375 | D39: ='Team Listings'!C100 -> Individual #26 | F39: ='Team Listings'!C101 -> Individual #27 | H39: ='Team Listings'!C102 -> Individual #28
A40: Back | B40: =B39+$B$61 -> 0.44375 | D40: ='Team Listings'!C97 -> Individual #23 | F40: ='Team Listings'!C98 -> Individual #24 | H40: ='Team Listings'!C99 -> Individual #25
D41: ='Team Listings'!C94 -> Individual #20 | F41: ='Team Listings'!C95 -> Individual #21 | H41: ='Team Listings'!C96 -> Individual #22
B43: 0.45
A44: Back | B44: 0.45625
A45: Back | B45: =B44+$B$61 -> 0.4625
A46: Back | B46: =B45+$B$61 -> 0.46875
A47: Back | B47: =B46+$B$61 -> 0.475
A48: Back | B48: =B47+$B$61 -> 0.48125
A49: Back | B49: =B48+$B$61 -> 0.4875
B55: "Tee Sheet" will automatically populate according to the information entered on "Team Listing Worksheet"
B56: The "Tee Sheet" allows for more individuals than you have. Ignore any cells that do not have a player in it.
B57: Check pairings to make sure you don't have two or more players from the same school in the same tee time.
B58: Manually adjust names on tee sheet only, if there is a conflict.
B59: Adjust start time by changing highlighted cells only.
B61: 0.00625

Sheet Summary Leaderboard (1) (hidden)
C1: Name of Course
C2: Par for Course
C3: Total Yardage for Course
C5: Finish | D5: Team | E5: Total
A6: 0.001 | B6: =F6+A6 ->  | C6: =RANK(F6,F$6:F$17,6) ->  | D6: =#REF! ->  | E6: =#REF! ->  | F6: =#REF! ->  | G6: 1 | H6: =SMALL($B$6:$B$17,G6) ->  | I6: =VLOOKUP($H6,$B$6:$E$17,2,FALSE) ->  | J6: =VLOOKUP($H6,$B$6:$E$17,3,FALSE) ->  | K6: =VLOOKUP($H6,$B$6:$E$17,4,FALSE) -> 
A7: 0.002 | B7: =F7+A7 ->  | D7: =#REF! ->  | E7: =#REF! ->  | F7: =#REF! ->  | G7: 2 | H7: =SMALL($B$6:$B$17,G7) -> 
A8: 0.003 | D8: =#REF! ->  | E8: =#REF! ->  | F8: =#REF! ->  | G8: 3
A9: 0.004 | D9: =#REF! ->  | E9: =#REF! ->  | F9: =#REF! ->  | G9: 4
A10: 0.005 | D10: =#REF! ->  | E10: =#REF! ->  | F10: =#REF! ->  | G10: 5
A11: 0.006 | D11: =#REF! ->  | E11: =#REF! ->  | F11: =#REF! ->  | G11: 6
A12: 0.007 | D12: =#REF! ->  | E12: =#REF! ->  | F12: =#REF! ->  | G12: 7
A13: 0.008 | D13: =#REF! ->  | E13: =#REF! ->  | F13: =#REF! ->  | G13: 8
A14: 0.009 | D14: =#REF! ->  | E14: =#REF! ->  | F14: =#REF! ->  | G14: 9
A15: 0.01 | D15: =#REF! ->  | E15: =#REF! ->  | F15: =#REF! ->  | G15: 10
A16: 0.011 | D16: =#REF! ->  | E16: =#REF! ->  | F16: =#REF! ->  | G16: 11
A17: 0.012 | D17: =#REF! ->  | E17: =#REF! ->  | F17: =#REF! ->  | G17: 12
D20: Name | E20: Team | G20: Total
A21: 0.001 | B21: =H21+A21 ->  | C21: =RANK(H21,H$21:H$132,6) ->  | D21: =#REF! ->  | E21: =#REF! ->  | G21: =#REF! ->  | H21: =#REF! ->  | I21: 1 | J21: =SMALL($B$21:$B$132,I21) ->  | K21: =VLOOKUP($J21,$B$21:$G$132,2,FALSE) ->  | L21: =VLOOKUP($J21,$B$21:$G$132,3,FALSE) ->  | M21: =VLOOKUP($J21,$B$21:$G$132,4,FALSE) ->  | N21: =VLOOKUP($J21,$B$21:$G$132,6,FALSE) -> 
A22: 0.002 | B22: =H22+A22 ->  | C22: =RANK(H22,H$21:H$132,6) ->  | D22: =#REF! ->  | E22: =#REF! ->  | G22: =#REF! ->  | H22: =#REF! ->  | I22: 2 | J22: =SMALL($B$21:$B$132,I22) ->  | K22: =VLOOKUP($J22,$B$21:$G$132,2,FALSE) ->  | L22: =VLOOKUP($J22,$B$21:$G$132,3,FALSE) ->  | M22: =VLOOKUP($J22,$B$21:$G$132,4,FALSE) ->  | N22: =VLOOKUP($J22,$B$21:$G$132,6,FALSE) -> 
A23: 0.003 | D23: =#REF! ->  | E23: =#REF! ->  | G23: =#REF! ->  | H23: =#REF! ->  | I23: 3
A24: 0.004 | D24: =#REF! ->  | E24: =#REF! ->  | G24: =#REF! ->  | H24: =#REF! ->  | I24: 4
A25: 0.005 | D25: =#REF! ->  | E25: =#REF! ->  | G25: =#REF! ->  | H25: =#REF! ->  | I25: 5
A26: 0.006 | D26: =#REF! ->  | E26: =#REF! ->  | G26: =#REF! ->  | H26: =#REF! ->  | I26: 6
A27: 0.007 | D27: =#REF! ->  | E27: =#REF! ->  | G27: =#REF! ->  | H27: =#REF! ->  | I27: 7
A28: 0.008 | D28: =#REF! ->  | E28: =#REF! ->  | G28: =#REF! ->  | H28: =#REF! ->  | I28: 8
A29: 0.009 | D29: =#REF! ->  | E29: =#REF! ->  | G29: =#REF! ->  | H29: =#REF! ->  | I29: 9
A30: 0.01 | D30: =#REF! ->  | E30: =#REF! ->  | G30: =#REF! ->  | H30: =#REF! ->  | I30: 10
A31: 0.011 | D31: =#REF! ->  | E31: =#REF! ->  | G31: =#REF! ->  | H31: =#REF! ->  | I31: 11
A32: 0.012 | D32: =#REF! ->  | E32: =#REF! ->  | G32: =#REF! ->  | H32: =#REF! ->  | I32: 12
A33: 0.013 | D33: =#REF! ->  | E33: =#REF! ->  | G33: =#REF! ->  | H33: =#REF! ->  | I33: 13
A34: 0.014 | D34: =#REF! ->  | E34: =#REF! ->  | G34: =#REF! ->  | H34: =#REF! ->  | I34: 14
A35: 0.015 | D35: =#REF! ->  | E35: =#REF! ->  | G35: =#REF! ->  | H35: =#REF! ->  | I35: 15
A36: 0.016 | D36: =#REF! ->  | E36: =#REF! ->  | G36: =#REF! ->  | H36: =#REF! ->  | I36: 16
A37: 0.017 | D37: =#REF! ->  | E37: =#REF! ->  | G37: =#REF! ->  | H37: =#REF! ->  | I37: 17
A38: 0.018 | D38: =#REF! ->  | E38: =#REF! ->  | G38: =#REF! ->  | H38: =#REF! ->  | I38: 18
A39: 0.019 | D39: =#REF! ->  | E39: =#REF! ->  | G39: =#REF! ->  | H39: =#REF! ->  | I39: 19
A40: 0.02 | D40: =#REF! ->  | E40: =#REF! ->  | G40: =#REF! ->  | H40: =#REF! ->  | I40: 20
A41: 0.021 | D41: =#REF! ->  | E41: =#REF! ->  | G41: =#REF! ->  | H41: =#REF! ->  | I41: 21
A42: 0.022 | D42: =#REF! ->  | E42: =#REF! ->  | G42: =#REF! ->  | H42: =#REF! ->  | I42: 22
A43: 0.023 | D43: =#REF! ->  | E43: =#REF! ->  | G43: =#REF! ->  | H43: =#REF! ->  | I43: 23
A44: 0.024 | D44: =#REF! ->  | E44: =#REF! ->  | G44: =#REF! ->  | H44: =#REF! ->  | I44: 24
A45: 0.025 | D45: =#REF! ->  | E45: =#REF! ->  | G45: =#REF! ->  | H45: =#REF! ->  | I45: 25
A46: 0.026 | D46: =#REF! ->  | E46: =#REF! ->  | G46: =#REF! ->  | H46: =#REF! ->  | I46: 26
A47: 0.027 | D47: =#REF! ->  | E47: =#REF! ->  | G47: =#REF! ->  | H47: =#REF! ->  | I47: 27
A48: 0.028 | D48: =#REF! ->  | E48: =#REF! ->  | G48: =#REF! ->  | H48: =#REF! ->  | I48: 28
A49: 0.029 | D49: =#REF! ->  | E49: =#REF! ->  | G49: =#REF! ->  | H49: =#REF! ->  | I49: 29
A50: 0.03 | D50: =#REF! ->  | E50: =#REF! ->  | G50: =#REF! ->  | H50: =#REF! ->  | I50: 30
A51: 0.031 | D51: =#REF! ->  | E51: =#REF! ->  | G51: =#REF! ->  | H51: =#REF! ->  | I51: 31
A52: 0.032 | D52: =#REF! ->  | E52: =#REF! ->  | G52: =#REF! ->  | H52: =#REF! ->  | I52: 32
A53: 0.033 | D53: =#REF! ->  | E53: =#REF! ->  | G53: =#REF! ->  | H53: =#REF! ->  | I53: 33
A54: 0.034 | D54: =#REF! ->  | E54: =#REF! ->  | G54: =#REF! ->  | H54: =#REF! ->  | I54: 34
A55: 0.035 | D55: =#REF! ->  | E55: =#REF! ->  | G55: =#REF! ->  | H55: =#REF! ->  | I55: 35
A56: 0.036 | D56: =#REF! ->  | E56: =#REF! ->  | G56: =#REF! ->  | H56: =#REF! ->  | I56: 36
A57: 0.037 | D57: =#REF! ->  | E57: =#REF! ->  | G57: =#REF! ->  | H57: =#REF! ->  | I57: 37
A58: 0.038 | D58: =#REF! ->  | E58: =#REF! ->  | G58: =#REF! ->  | H58: =#REF! ->  | I58: 38
A59: 0.039 | D59: =#REF! ->  | E59: =#REF! ->  | G59: =#REF! ->  | H59: =#REF! ->  | I59: 39
A60: 0.04 | D60: =#REF! ->  | E60: =#REF! ->  | G60: =#REF! ->  | H60: =#REF! ->  | I60: 40
A61: 0.041 | D61: =#REF! ->  | E61: =#REF! ->  | G61: =#REF! ->  | H61: =#REF! ->  | I61: 41
A62: 0.042 | D62: =#REF! ->  | E62: =#REF! ->  | G62: =#REF! ->  | H62: =#REF! ->  | I62: 42
A63: 0.043 | D63: =#REF! ->  | E63: =#REF! ->  | G63: =#REF! ->  | H63: =#REF! ->  | I63: 43
A64: 0.044 | D64: =#REF! ->  | E64: =#REF! ->  | G64: =#REF! ->  | H64: =#REF! ->  | I64: 44
A65: 0.045 | D65: =#REF! ->  | E65: =#REF! ->  | G65: =#REF! ->  | H65: =#REF! ->  | I65: 45
A66: 0.046 | D66: =#REF! ->  | E66: =#REF! ->  | G66: =#REF! ->  | H66: =#REF! ->  | I66: 46
A67: 0.047 | D67: =#REF! ->  | E67: =#REF! ->  | G67: =#REF! ->  | H67: =#REF! ->  | I67: 47
A68: 0.048 | D68: =#REF! ->  | E68: =#REF! ->  | G68: =#REF! ->  | H68: =#REF! ->  | I68: 48
A69: 0.049 | D69: =#REF! ->  | E69: =#REF! ->  | G69: =#REF! ->  | H69: =#REF! ->  | I69: 49
A70: 0.05 | D70: =#REF! ->  | E70: =#REF! ->  | G70: =#REF! ->  | H70: =#REF! ->  | I70: 50
A71: 0.051 | D71: =#REF! ->  | E71: =#REF! ->  | G71: =#REF! ->  | H71: =#REF! ->  | I71: 51
A72: 0.052 | D72: =#REF! ->  | E72: =#REF! ->  | G72: =#REF! ->  | H72: =#REF! ->  | I72: 52
A73: 0.053 | D73: =#REF! ->  | E73: =#REF! ->  | G73: =#REF! ->  | H73: =#REF! ->  | I73: 53
A74: 0.054 | D74: =#REF! ->  | E74: =#REF! ->  | G74: =#REF! ->  | H74: =#REF! ->  | I74: 54
A75: 0.055 | D75: =#REF! ->  | E75: =#REF! ->  | G75: =#REF! ->  | H75: =#REF! ->  | I75: 55
A76: 0.056 | D76: =#REF! ->  | E76: =#REF! ->  | G76: =#REF! ->  | H76: =#REF! ->  | I76: 56
A77: 0.057 | D77: =#REF! ->  | E77: =#REF! ->  | G77: =#REF! ->  | H77: =#REF! ->  | I77: 57
A78: 0.058 | D78: =#REF! ->  | E78: =#REF! ->  | G78: =#REF! ->  | H78: =#REF! ->  | I78: 58
A79: 0.059 | D79: =#REF! ->  | E79: =#REF! ->  | G79: =#REF! ->  | H79: =#REF! ->  | I79: 59
A80: 0.06 | D80: =#REF! ->  | E80: =#REF! ->  | G80: =#REF! ->  | H80: =#REF! ->  | I80: 60
A81: 0.061 | D81: =#REF! ->  | E81: =#REF! ->  | G81: =#REF! ->  | H81: =#REF! ->  | I81: 61
A82: 0.062 | D82: =#REF! ->  | E82: =#REF! ->  | G82: =#REF! ->  | H82: =#REF! ->  | I82: 62
A83: 0.063 | D83: =#REF! ->  | E83: =#REF! ->  | G83: =#REF! ->  | H83: =#REF! ->  | I83: 63
A84: 0.064 | D84: =#REF! ->  | E84: =#REF! ->  | G84: =#REF! ->  | H84: =#REF! ->  | I84: 64
A85: 0.065 | D85: =#REF! ->  | E85: =#REF! ->  | G85: =#REF! ->  | H85: =#REF! ->  | I85: 65
A86: 0.066 | B86: =H86+A86 ->  | C86: =RANK(H86,H$21:H$132,6) ->  | D86: =#REF! ->  | E86: =#REF! ->  | G86: =#REF! ->  | H86: =#REF! ->  | I86: 66 | J86: =SMALL($B$21:$B$132,I86) ->  | K86: =VLOOKUP($J86,$B$21:$G$132,2,FALSE) ->  | L86: =VLOOKUP($J86,$B$21:$G$132,3,FALSE) ->  | M86: =VLOOKUP($J86,$B$21:$G$132,4,FALSE) ->  | N86: =VLOOKUP($J86,$B$21:$G$132,6,FALSE) -> 
A87: 0.067 | D87: =#REF! ->  | E87: =#REF! ->  | G87: =#REF! ->  | H87: =#REF! ->  | I87: 67
A88: 0.068 | D88: =#REF! ->  | E88: =#REF! ->  | G88: =#REF! ->  | H88: =#REF! ->  | I88: 68
A89: 0.069 | D89: =#REF! ->  | E89: =#REF! ->  | G89: =#REF! ->  | H89: =#REF! ->  | I89: 69
A90: 0.07 | D90: =#REF! ->  | E90: =#REF! ->  | G90: =#REF! ->  | H90: =#REF! ->  | I90: 70
A91: 0.071 | D91: =#REF! ->  | E91: =#REF! ->  | G91: =#REF! ->  | H91: =#REF! ->  | I91: 71
A92: 0.072 | D92: =#REF! ->  | E92: =#REF! ->  | G92: =#REF! ->  | H92: =#REF! ->  | I92: 72
A93: 0.073 | D93: =#REF! ->  | E93: =#REF! ->  | G93: =#REF! ->  | H93: =#REF! ->  | I93: 73
A94: 0.074 | D94: =#REF! ->  | E94: =#REF! ->  | G94: =#REF! ->  | H94: =#REF! ->  | I94: 74
A95: 0.075 | D95: =#REF! ->  | E95: =#REF! ->  | G95: =#REF! ->  | H95: =#REF! ->  | I95: 75
A96: 0.076 | D96: =#REF! ->  | E96: =#REF! ->  | G96: =#REF! ->  | H96: =#REF! ->  | I96: 76
A97: 0.077 | D97: =#REF! ->  | E97: =#REF! ->  | G97: =#REF! ->  | H97: =#REF! ->  | I97: 77
A98: 0.078 | D98: =#REF! ->  | E98: =#REF! ->  | G98: =#REF! ->  | H98: =#REF! ->  | I98: 78
A99: 0.079 | D99: =#REF! ->  | E99: =#REF! ->  | G99: =#REF! ->  | H99: =#REF! ->  | I99: 79
A100: 0.08 | D100: =#REF! ->  | E100: =#REF! ->  | G100: =#REF! ->  | H100: =#REF! ->  | I100: 80
A101: 0.081 | D101: =#REF! ->  | E101: =#REF! ->  | G101: =#REF! ->  | H101: =#REF! ->  | I101: 81
A102: 0.082 | D102: =#REF! ->  | E102: =#REF! ->  | G102: =#REF! ->  | H102: =#REF! ->  | I102: 82
A103: 0.083 | D103: =#REF! ->  | E103: =#REF! ->  | G103: =#REF! ->  | H103: =#REF! ->  | I103: 83
A104: 0.084 | D104: =#REF! ->  | E104: =#REF! ->  | G104: =#REF! ->  | H104: =#REF! ->  | I104: 84
A105: 0.085 | D105: =#REF! ->  | E105: =#REF! ->  | G105: =#REF! ->  | H105: =#REF! ->  | I105: 85
A106: 0.086 | D106: =#REF! ->  | E106: =#REF! ->  | G106: =#REF! ->  | H106: =#REF! ->  | I106: 86
A107: 0.087 | D107: =#REF! ->  | E107: =#REF! ->  | G107: =#REF! ->  | H107: =#REF! ->  | I107: 87
A108: 0.088 | D108: =#REF! ->  | E108: =#REF! ->  | G108: =#REF! ->  | H108: =#REF! ->  | I108: 88
A109: 0.089 | D109: =#REF! ->  | E109: =#REF! ->  | G109: =#REF! ->  | H109: =#REF! ->  | I109: 89
A110: 0.09 | D110: =#REF! ->  | E110: =#REF! ->  | G110: =#REF! ->  | H110: =#REF! ->  | I110: 90
A111: 0.091 | D111: =#REF! ->  | E111: =#REF! ->  | G111: =#REF! ->  | H111: =#REF! ->  | I111: 91
A112: 0.092 | D112: =#REF! ->  | E112: =#REF! ->  | G112: =#REF! ->  | H112: =#REF! ->  | I112: 92
A113: 0.093 | D113: =#REF! ->  | E113: =#REF! ->  | G113: =#REF! ->  | H113: =#REF! ->  | I113: 93
A114: 0.094 | D114: =#REF! ->  | E114: =#REF! ->  | G114: =#REF! ->  | H114: =#REF! ->  | I114: 94
A115: 0.095 | D115: =#REF! ->  | E115: =#REF! ->  | G115: =#REF! ->  | H115: =#REF! ->  | I115: 95
A116: 0.096 | D116: =#REF! ->  | E116: =#REF! ->  | G116: =#REF! ->  | H116: =#REF! ->  | I116: 96
A117: 0.097 | D117: =#REF! ->  | E117: =#REF! ->  | G117: =#REF! ->  | H117: =#REF! ->  | I117: 97
A118: 0.098 | D118: =#REF! ->  | E118: =#REF! ->  | G118: =#REF! ->  | H118: =#REF! ->  | I118: 98
A119: 0.099 | D119: =#REF! ->  | E119: =#REF! ->  | G119: =#REF! ->  | H119: =#REF! ->  | I119: 99
A120: 0.1 | D120: =#REF! ->  | E120: =#REF! ->  | G120: =#REF! ->  | H120: =#REF! ->  | I120: 100
A121: 0.101 | D121: =#REF! ->  | E121: =#REF! ->  | G121: =#REF! ->  | H121: =#REF! ->  | I121: 101
A122: 0.102 | D122: =#REF! ->  | E122: =#REF! ->  | G122: =#REF! ->  | H122: =#REF! ->  | I122: 102
A123: 0.103 | D123: =#REF! ->  | E123: =#REF! ->  | G123: =#REF! ->  | H123: =#REF! ->  | I123: 103
A124: 0.104 | D124: =#REF! ->  | E124: =#REF! ->  | G124: =#REF! ->  | H124: =#REF! ->  | I124: 104
A125: 0.105 | D125: =#REF! ->  | E125: =#REF! ->  | G125: =#REF! ->  | H125: =#REF! ->  | I125: 105
A126: 0.106 | D126: =#REF! ->  | E126: =#REF! ->  | G126: =#REF! ->  | H126: =#REF! ->  | I126: 106
A127: 0.107 | D127: =#REF! ->  | E127: =#REF! ->  | G127: =#REF! ->  | H127: =#REF! ->  | I127: 107
A128: 0.108 | D128: =#REF! ->  | E128: =#REF! ->  | G128: =#REF! ->  | H128: =#REF! ->  | I128: 108
A129: 0.109 | D129: =#REF! ->  | E129: =#REF! ->  | G129: =#REF! ->  | H129: =#REF! ->  | I129: 109
A130: 0.11 | D130: =#REF! ->  | E130: =#REF! ->  | G130: =#REF! ->  | H130: =#REF! ->  | I130: 110
A131: 0.111 | D131: =#REF! ->  | E131: =#REF! ->  | G131: =#REF! ->  | H131: =#REF! ->  | I131: 111
A132: 0.112 | D132: =#REF! ->  | E132: =#REF! ->  | G132: =#REF! ->  | H132: =#REF! ->  | I132: 112
